[Event "Live Chess"]
[Site "Chess.com"]
[Date "2024.06.01"]
[Round "-"]
[White "Tushinskiy"]
[Black "nigelst"]
[Result "1-0"]
[WhiteElo "2255"]
[BlackElo "1674"]
[TimeControl "300"]
[EndTime "15:07:40 PDT"]
[Termination "Tushinskiy won by resignation"]

1. d4 {[%clk 0:04:49.7]} 1... Nf6 {[%clk 0:04:56.8]} 2. c3 {[%clk 0:04:49.6]}
2... e6 {[%clk 0:04:56]} 3. Nf3 {[%clk 0:04:49.5]} 3... c5 {[%clk 0:04:54.9]} 4.
Bf4 {[%clk 0:04:47.2]} 4... b6 {[%clk 0:04:50.1]} 5. Nbd2 {[%clk 0:04:45.1]}
5... Bb7 {[%clk 0:04:47.6]} 6. e3 {[%clk 0:04:40.4]} 6... cxd4 {[%clk
0:04:46.1]} 7. exd4 {[%clk 0:04:40.3]} 7... d6 {[%clk 0:04:45.3]} 8. Bb5+ {[%clk
0:04:38.2]} 8... Nbd7 {[%clk 0:04:43.8]} 9. Qe2 {[%clk 0:04:37.1]} 9... Be7
{[%clk 0:04:42.3]} 10. O-O {[%clk 0:04:28.8]} 10... O-O {[%clk 0:04:40.4]} 11.
Rad1 {[%clk 0:04:28.3]} 11... a6 {[%clk 0:04:39.3]} 12. Ba4 {[%clk 0:04:27.1]}
12... b5 {[%clk 0:04:36.3]} 13. Bc2 {[%clk 0:04:22.2]} 13... Rc8 {[%clk
0:04:33.3]} 14. Bb1 {[%clk 0:04:20.9]} 14... Nb6 {[%clk 0:04:28.3]} 15. Bg3
{[%clk 0:04:19.2]} 15... Nc4 {[%clk 0:04:26.8]} 16. Nxc4 {[%clk 0:04:17.9]}
16... Rxc4 {[%clk 0:04:23.1]} 17. Rfe1 {[%clk 0:04:16.5]} 17... Qc7 {[%clk
0:04:14.7]} 18. Bh4 {[%clk 0:04:01.3]} 18... Rc8 {[%clk 0:04:04.8]} 19. Ng5
{[%clk 0:03:56.2]} 19... Bd5 {[%clk 0:03:57]} 20. Nxf7 {[%clk 0:03:40.5]} 20...
Kxf7 {[%clk 0:03:49.6]} 21. Bxf6 {[%clk 0:03:38.5]} 21... Bxf6 {[%clk
0:03:47.4]} 22. Qh5+ {[%clk 0:03:36.5]} 22... Kg8 {[%clk 0:03:42.8]} 23. Bxh7+
{[%clk 0:03:29]} 23... Kf8 {[%clk 0:03:41.6]} 24. Bg6 {[%clk 0:03:26.2]} 24...
Ke7 {[%clk 0:03:30.1]} 25. Qxd5 {[%clk 0:03:24]} 25... Kd7 {[%clk 0:03:27.7]}
26. Qxe6+ {[%clk 0:03:15.8]} 26... Kc6 {[%clk 0:03:26.6]} 27. Be4+ {[%clk
0:03:07]} 27... Kb6 {[%clk 0:03:24.5]} 28. Bd5 {[%clk 0:03:06.9]} 28... Ra4
{[%clk 0:03:20.8]} 29. Rc1 {[%clk 0:02:46.8]} 29... Qd8 {[%clk 0:03:16]} 30. Bb3
{[%clk 0:02:42.9]} 30... Ra5 {[%clk 0:03:13.3]} 31. Bd1 {[%clk 0:02:33.5]} 31...
Ka7 {[%clk 0:03:09.3]} 32. b4 {[%clk 0:02:30]} 32... Rxa2 {[%clk 0:03:05.2]} 33.
Qxa2 {[%clk 0:02:28.1]} 1-0

[Event "Live Chess"]
[Site "Chess.com"]
[Date "2024.06.01"]
[Round "-"]
[White "willc-h99"]
[Black "Ferrarifan27"]
[Result "1-0"]
[WhiteElo "2627"]
[BlackElo "2093"]
[TimeControl "300"]
[EndTime "15:07:46 PDT"]
[Termination "willc-h99 won by resignation"]

1. d4 {[%clk 0:04:57.6]} 1... Nf6 {[%clk 0:04:51.5]} 2. Bg5 {[%clk 0:04:56.9]}
2... d5 {[%clk 0:04:49.2]} 3. Nd2 {[%clk 0:04:55.4]} 3... Bf5 {[%clk 0:04:45.3]}
4. f3 {[%clk 0:04:43.2]} 4... e6 {[%clk 0:04:44.1]} 5. g4 {[%clk 0:04:41.1]}
5... Bg6 {[%clk 0:04:43.2]} 6. h4 {[%clk 0:04:37]} 6... h6 {[%clk 0:04:42.5]} 7.
Bf4 {[%clk 0:04:34.9]} 7... Bd6 {[%clk 0:04:37.7]} 8. e3 {[%clk 0:04:26.5]} 8...
Bxf4 {[%clk 0:04:36]} 9. exf4 {[%clk 0:04:25]} 9... Qd6 {[%clk 0:04:35.4]} 10.
Ne2 {[%clk 0:04:17.4]} 10... Nc6 {[%clk 0:04:33.6]} 11. c3 {[%clk 0:04:15.7]}
11... O-O-O {[%clk 0:04:30.7]} 12. Kf2 {[%clk 0:04:11.3]} 12... Bd3 {[%clk
0:04:28.4]} 13. Ke3 {[%clk 0:03:44]} 13... Ba6 {[%clk 0:04:15]} 14. Nc1 {[%clk
0:03:41.1]} 14... g5 {[%clk 0:04:05.4]} 15. Bxa6 {[%clk 0:03:23.3]} 15... Qxf4+
{[%clk 0:04:02.8]} 16. Ke2 {[%clk 0:03:22.4]} 16... bxa6 {[%clk 0:04:00.4]} 17.
Qa4 {[%clk 0:03:17.3]} 17... Kd7 {[%clk 0:03:43.1]} 18. Nd3 {[%clk 0:03:13.3]}
18... Qd6 {[%clk 0:03:37.8]} 19. Ne5+ {[%clk 0:03:11.1]} 19... Kc8 {[%clk
0:03:36]} 20. Qxa6+ {[%clk 0:03:08.1]} 20... Kb8 {[%clk 0:03:33.8]} 21. Nxc6+
{[%clk 0:03:06.9]} 1-0

[Event "Live Chess"]
[Site "Chess.com"]
[Date "2024.06.01"]
[Round "-"]
[White "NottheBishopSacrifice"]
[Black "Cimon"]
[Result "1-0"]
[WhiteElo "2260"]
[BlackElo "1823"]
[TimeControl "300"]
[EndTime "15:07:47 PDT"]
[Termination "NottheBishopSacrifice won on time"]

1. g3 {[%clk 0:04:53.1]} 1... d5 {[%clk 0:04:54.6]} 2. Bg2 {[%clk 0:04:53]} 2...
Nf6 {[%clk 0:04:51.4]} 3. Nf3 {[%clk 0:04:52.6]} 3... c5 {[%clk 0:04:40.8]} 4.
O-O {[%clk 0:04:52.2]} 4... Nc6 {[%clk 0:04:38.6]} 5. d4 {[%clk 0:04:50.8]} 5...
Bg4 {[%clk 0:04:29.8]} 6. Ne5 {[%clk 0:04:47.2]} 6... Bf5 {[%clk 0:04:24]} 7.
Nxc6 {[%clk 0:04:42.8]} 7... bxc6 {[%clk 0:04:22.1]} 8. c4 {[%clk 0:04:38.5]}
8... e6 {[%clk 0:04:19.3]} 9. Nc3 {[%clk 0:04:35.8]} 9... cxd4 {[%clk
0:04:13.4]} 10. Qxd4 {[%clk 0:04:34]} 10... c5 {[%clk 0:04:11.4]} 11. Qd1 {[%clk
0:04:31.7]} 11... d4 {[%clk 0:04:01.7]} 12. Qa4+ {[%clk 0:04:23.4]} 12... Nd7
{[%clk 0:03:56]} 13. Nb5 {[%clk 0:04:19.7]} 13... Rc8 {[%clk 0:03:29.9]} 14.
Nxa7 {[%clk 0:04:17.1]} 14... Rc7 {[%clk 0:03:17.4]} 15. Nc6 {[%clk 0:04:12.1]}
15... Qc8 {[%clk 0:03:08.7]} 16. Bf4 {[%clk 0:04:10.9]} 16... e5 {[%clk
0:02:49.5]} 17. Bxe5 {[%clk 0:04:08.9]} 17... Nxe5 {[%clk 0:02:40.3]} 18. Nxe5+
{[%clk 0:04:07.2]} 18... Ke7 {[%clk 0:02:35.3]} 19. e4 {[%clk 0:04:01.4]} 19...
Be6 {[%clk 0:02:24.8]} 20. f4 {[%clk 0:03:55]} 20... f6 {[%clk 0:02:23.2]} 21.
Nd3 {[%clk 0:03:53.7]} 21... Kf7 {[%clk 0:02:11.8]} 22. f5 {[%clk 0:03:51.7]}
22... Bd7 {[%clk 0:02:09.9]} 23. Qa3 {[%clk 0:03:48.9]} 23... Bd6 {[%clk
0:02:02.6]} 24. e5 {[%clk 0:03:45.4]} 24... fxe5 {[%clk 0:02:00.6]} 25. Bd5+
{[%clk 0:03:44.8]} 25... Kf6 {[%clk 0:01:57.5]} 26. Nf2 {[%clk 0:03:40.6]} 26...
Ke7 {[%clk 0:01:51.4]} 27. Ne4 {[%clk 0:03:38.9]} 27... Bc6 {[%clk 0:01:26.3]}
28. f6+ {[%clk 0:03:33.4]} 28... gxf6 {[%clk 0:01:23.5]} 29. Nxf6 {[%clk
0:03:33.3]} 29... Qh3 {[%clk 0:00:50.2]} 30. Bxc6 {[%clk 0:03:29]} 30... Rxc6
{[%clk 0:00:48.3]} 31. Nd5+ {[%clk 0:03:27.7]} 31... Kd8 {[%clk 0:00:23]} 32.
Qa8+ {[%clk 0:03:24]} 32... Rc8 {[%clk 0:00:20.4]} 33. Qa6 {[%clk 0:03:20.2]}
33... Qe6 {[%clk 0:00:14.9]} 34. Rf6 {[%clk 0:03:18.3]} 1-0

[Event "Live Chess"]
[Site "Chess.com"]
[Date "2024.06.01"]
[Round "-"]
[White "JohanKjeldahl"]
[Black "anatoliy10912"]
[Result "0-1"]
[WhiteElo "1858"]
[BlackElo "1745"]
[TimeControl "300"]
[EndTime "15:07:52 PDT"]
[Termination "anatoliy10912 won by checkmate"]

1. e4 {[%clk 0:04:57.2]} 1... e6 {[%clk 0:04:57.3]} 2. d4 {[%clk 0:04:55.1]}
2... d5 {[%clk 0:04:56.5]} 3. Nd2 {[%clk 0:04:54.2]} 3... c5 {[%clk 0:04:53.6]}
4. Ngf3 {[%clk 0:04:52]} 4... Nc6 {[%clk 0:04:49.8]} 5. exd5 {[%clk 0:04:50.4]}
5... exd5 {[%clk 0:04:48.2]} 6. Bb5 {[%clk 0:04:47.3]} 6... a6 {[%clk
0:04:46.5]} 7. Bxc6+ {[%clk 0:04:44.9]} 7... bxc6 {[%clk 0:04:45]} 8. O-O {[%clk
0:04:43.4]} 8... a5 {[%clk 0:04:37.8]} 9. Re1+ {[%clk 0:04:42]} 9... Be7 {[%clk
0:04:33.6]} 10. dxc5 {[%clk 0:04:41]} 10... Nf6 {[%clk 0:04:28.1]} 11. Nb3
{[%clk 0:04:37.8]} 11... O-O {[%clk 0:04:19.1]} 12. Nbd4 {[%clk 0:04:36.1]}
12... Bxc5 {[%clk 0:04:11.2]} 13. Nxc6 {[%clk 0:04:32.4]} 13... Qb6 {[%clk
0:04:09.7]} 14. Ncd4 {[%clk 0:04:29.1]} 14... Bg4 {[%clk 0:04:02.2]} 15. c3
{[%clk 0:04:26.9]} 15... Ne4 {[%clk 0:03:51.6]} 16. h3 {[%clk 0:03:48]} 16...
Bh5 {[%clk 0:03:45.6]} 17. g4 {[%clk 0:03:44.5]} 17... Bg6 {[%clk 0:03:36.3]}
18. Ne5 {[%clk 0:03:41.4]} 18... Rae8 {[%clk 0:03:18.3]} 19. Nd7 {[%clk
0:03:39.8]} 19... Bxd4 {[%clk 0:03:03.5]} 20. Nxb6 {[%clk 0:03:36.1]} 20...
Bxf2+ {[%clk 0:03:00.3]} 21. Kg2 {[%clk 0:03:33.9]} 21... Bxb6 {[%clk
0:02:42.1]} 22. Be3 {[%clk 0:03:29.5]} 22... Nxc3 {[%clk 0:02:23.5]} 23. bxc3
{[%clk 0:03:26.1]} 23... Rxe3 {[%clk 0:02:19.6]} 24. Rxe3 {[%clk 0:03:19.1]}
24... Bxe3 {[%clk 0:02:15.9]} 25. Qxd5 {[%clk 0:03:16]} 25... Re8 {[%clk
0:02:11.3]} 26. Kg3 {[%clk 0:03:13.8]} 26... Ba7 {[%clk 0:01:52.7]} 27. Rf1
{[%clk 0:03:05]} 27... Bb8+ {[%clk 0:01:50.5]} 28. Kh4 {[%clk 0:03:00.6]} 28...
h6 {[%clk 0:01:35.3]} 29. Qd7 {[%clk 0:02:56.4]} 29... f6 {[%clk 0:01:25]} 30.
c4 {[%clk 0:02:43.7]} 30... Bf7 {[%clk 0:01:19.5]} 31. c5 {[%clk 0:02:38]} 31...
g5# {[%clk 0:01:18.1]} 0-1

[Event "Live Chess"]
[Site "Chess.com"]
[Date "2024.06.01"]
[Round "-"]
[White "GEMdzq"]
[Black "NAZRIZ1977"]
[Result "0-1"]
[WhiteElo "2285"]
[BlackElo "2161"]
[TimeControl "300"]
[EndTime "15:07:57 PDT"]
[Termination "NAZRIZ1977 won by resignation"]

1. e4 {[%clk 0:04:57.2]} 1... c5 {[%clk 0:04:56.9]} 2. d4 {[%clk 0:04:56.3]}
2... cxd4 {[%clk 0:04:55.4]} 3. c3 {[%clk 0:04:55.9]} 3... Nf6 {[%clk
0:04:54.6]} 4. e5 {[%clk 0:04:54.6]} 4... Nd5 {[%clk 0:04:53.8]} 5. Qxd4 {[%clk
0:04:54]} 5... Nb6 {[%clk 0:04:49.9]} 6. Nf3 {[%clk 0:04:50.2]} 6... Nc6 {[%clk
0:04:49]} 7. Qe4 {[%clk 0:04:49.4]} 7... g6 {[%clk 0:04:37.1]} 8. h4 {[%clk
0:04:41.5]} 8... d5 {[%clk 0:04:29.2]} 9. exd6 {[%clk 0:04:40.3]} 9... Qxd6
{[%clk 0:04:27.9]} 10. Bf4 {[%clk 0:04:36.3]} 10... Qd5 {[%clk 0:04:23.1]} 11.
Qe3 {[%clk 0:04:30.6]} 11... Bg4 {[%clk 0:04:11]} 12. Nbd2 {[%clk 0:04:29.1]}
12... h5 {[%clk 0:04:04.2]} 13. Bd3 {[%clk 0:04:19.8]} 13... Rd8 {[%clk
0:03:55.5]} 14. Be4 {[%clk 0:04:18.1]} 14... Qb5 {[%clk 0:03:50.5]} 15. b3
{[%clk 0:04:11.4]} 15... Nd5 {[%clk 0:03:44.8]} 16. Bxd5 {[%clk 0:04:04.9]}
16... Qxd5 {[%clk 0:03:44]} 17. O-O {[%clk 0:04:03.3]} 17... Qd3 {[%clk
0:03:28.4]} 18. Rfe1 {[%clk 0:03:51.1]} 18... Qxe3 {[%clk 0:03:25.9]} 19. Rxe3
{[%clk 0:03:50.2]} 19... Bg7 {[%clk 0:03:21.3]} 20. Rae1 {[%clk 0:03:46.9]}
20... O-O {[%clk 0:03:20]} 21. Nc4 {[%clk 0:03:31.2]} 21... Bxf3 {[%clk
0:03:11.3]} 22. Rxf3 {[%clk 0:03:29.4]} 22... e6 {[%clk 0:03:04.3]} 23. Bg5
{[%clk 0:03:22]} 23... Rd7 {[%clk 0:02:58.4]} 24. b4 {[%clk 0:03:12.4]} 24... b5
{[%clk 0:02:54.5]} 25. Nd2 {[%clk 0:03:08.5]} 25... Ne5 {[%clk 0:02:39.2]} 26.
Rg3 {[%clk 0:03:00.1]} 26... f6 {[%clk 0:02:31.8]} 27. Be3 {[%clk 0:02:52.1]}
27... Ng4 {[%clk 0:02:29.8]} 28. Bc5 {[%clk 0:02:42.1]} 28... Rxd2 {[%clk
0:02:25.8]} 29. Bxf8 {[%clk 0:02:39.3]} 29... Kxf8 {[%clk 0:02:23.1]} 30. f3
{[%clk 0:02:34.3]} 30... Ne5 {[%clk 0:02:19.7]} 31. f4 {[%clk 0:02:33.1]} 31...
Ng4 {[%clk 0:02:17.7]} 32. Kf1 {[%clk 0:02:17.4]} 32... Ke7 {[%clk 0:02:12.1]}
33. Re2 {[%clk 0:02:16.2]} 33... Rxe2 {[%clk 0:02:01.6]} 34. Kxe2 {[%clk
0:02:15]} 34... e5 {[%clk 0:02:01.2]} 35. fxe5 {[%clk 0:02:12.6]} 35... Nxe5
{[%clk 0:02:00.4]} 36. Re3 {[%clk 0:01:57.3]} 36... Kd6 {[%clk 0:01:59.1]} 37.
Re4 {[%clk 0:01:53.5]} 37... Kd5 {[%clk 0:01:57.1]} 38. Rd4+ {[%clk 0:01:52.6]}
38... Kc6 {[%clk 0:01:50.7]} 39. Rd8 {[%clk 0:01:49.7]} 39... f5 {[%clk
0:01:45.6]} 40. Rg8 {[%clk 0:01:47.6]} 40... Bf6 {[%clk 0:01:43.7]} 41. g3
{[%clk 0:01:45.7]} 41... Kd5 {[%clk 0:01:35.8]} 42. Rc8 {[%clk 0:01:38.3]} 42...
Nc4 {[%clk 0:01:29.7]} 43. Rc5+ {[%clk 0:01:23.5]} 43... Kd6 {[%clk 0:01:25]}
44. Rxb5 {[%clk 0:01:22]} 44... Bxc3 {[%clk 0:01:24.4]} 45. Rc5 {[%clk
0:01:13.6]} 45... Bxb4 {[%clk 0:01:18]} 46. Rxc4 {[%clk 0:01:12.5]} 46... a5
{[%clk 0:01:17.9]} 47. a4 {[%clk 0:01:10]} 47... Ke6 {[%clk 0:01:15.9]} 48. Rc6+
{[%clk 0:01:08.7]} 48... Kf7 {[%clk 0:01:14.7]} 49. Ra6 {[%clk 0:01:05.6]} 49...
Kg7 {[%clk 0:01:08.8]} 50. Kf3 {[%clk 0:00:58.9]} 50... Be1 {[%clk 0:01:05]} 51.
Re6 {[%clk 0:00:52.1]} 51... Bb4 {[%clk 0:01:03]} 52. Re2 {[%clk 0:00:43]} 52...
Kf6 {[%clk 0:01:01]} 53. Rc2 {[%clk 0:00:41.4]} 53... Kg7 {[%clk 0:00:56.2]} 54.
Kf4 {[%clk 0:00:40]} 54... Bd6+ {[%clk 0:00:53.7]} 55. Ke3 {[%clk 0:00:38.9]}
55... Bxg3 {[%clk 0:00:51.8]} 56. Rc5 {[%clk 0:00:35.5]} 56... Be1 {[%clk
0:00:48.3]} 57. Kf4 {[%clk 0:00:31.4]} 57... Bd2+ {[%clk 0:00:42.2]} 58. Ke5
{[%clk 0:00:30.6]} 58... Bb4 {[%clk 0:00:39.7]} 59. Rc7+ {[%clk 0:00:29.3]}
59... Kh6 {[%clk 0:00:38.5]} 60. Kf6 {[%clk 0:00:27]} 60... f4 {[%clk
0:00:36.6]} 61. Rc8 {[%clk 0:00:25.4]} 61... Kh7 {[%clk 0:00:32.1]} 62. Rc4
{[%clk 0:00:18.9]} 62... Bd2 {[%clk 0:00:29.5]} 63. Ke5 {[%clk 0:00:15.1]} 63...
f3 {[%clk 0:00:26.6]} 64. Rd4 {[%clk 0:00:10.1]} 64... Bc3 {[%clk 0:00:25.3]}
65. Ke4 {[%clk 0:00:08.2]} 65... Bxd4 {[%clk 0:00:25.1]} 66. Kxf3 {[%clk
0:00:07.9]} 66... Bc3 {[%clk 0:00:23.7]} 0-1

[Event "Live Chess"]
[Site "Chess.com"]
[Date "2024.06.01"]
[Round "-"]
[White "CheckThis4"]
[Black "vincents82"]
[Result "1-0"]
[WhiteElo "2684"]
[BlackElo "2078"]
[TimeControl "300"]
[EndTime "15:07:59 PDT"]
[Termination "CheckThis4 won by resignation"]

1. e4 {[%clk 0:04:56.3]} 1... d5 {[%clk 0:04:58.8]} 2. exd5 {[%clk 0:04:54.9]}
2... Qxd5 {[%clk 0:04:57.5]} 3. Nc3 {[%clk 0:04:53.2]} 3... Qd8 {[%clk
0:04:56.1]} 4. d4 {[%clk 0:04:52]} 4... Nf6 {[%clk 0:04:55.3]} 5. g3 {[%clk
0:04:44]} 5... c6 {[%clk 0:04:53.7]} 6. Bg2 {[%clk 0:04:42.8]} 6... Bf5 {[%clk
0:04:53.2]} 7. Nge2 {[%clk 0:04:38.6]} 7... e6 {[%clk 0:04:52.7]} 8. Bg5 {[%clk
0:04:36.9]} 8... Nbd7 {[%clk 0:04:51.7]} 9. Qd2 {[%clk 0:04:34.8]} 9... Be7
{[%clk 0:04:51.2]} 10. O-O-O {[%clk 0:04:32.9]} 10... Qa5 {[%clk 0:04:50.2]} 11.
Kb1 {[%clk 0:04:30.8]} 11... O-O-O {[%clk 0:04:43.5]} 12. Nd5 {[%clk 0:04:14.4]}
12... Qxd2 {[%clk 0:04:18]} 13. Nxe7+ {[%clk 0:04:10.3]} 13... Kb8 {[%clk
0:04:17.6]} 14. Rxd2 {[%clk 0:03:42.5]} 14... Bg4 {[%clk 0:04:13.2]} 15. f3
{[%clk 0:03:38.3]} 1-0

[Event "Live Chess"]
[Site "Chess.com"]
[Date "2024.06.01"]
[Round "-"]
[White "agamilewska"]
[Black "NebodarMatevich"]
[Result "1-0"]
[WhiteElo "1774"]
[BlackElo "1558"]
[TimeControl "300"]
[EndTime "15:08:31 PDT"]
[Termination "agamilewska won by resignation"]

1. d4 {[%clk 0:04:58.1]} 1... Nf6 {[%clk 0:04:58.2]} 2. c4 {[%clk 0:04:56.9]}
2... g6 {[%clk 0:04:57.3]} 3. Nf3 {[%clk 0:04:56.1]} 3... Bg7 {[%clk 0:04:56.7]}
4. Nc3 {[%clk 0:04:55.5]} 4... O-O {[%clk 0:04:55.2]} 5. Bg5 {[%clk 0:04:54.3]}
5... h6 {[%clk 0:04:53.6]} 6. Bxf6 {[%clk 0:04:53.4]} 6... Bxf6 {[%clk
0:04:52.9]} 7. e3 {[%clk 0:04:53.3]} 7... a5 {[%clk 0:04:50.8]} 8. Bd3 {[%clk
0:04:52.5]} 8... Na6 {[%clk 0:04:49.5]} 9. O-O {[%clk 0:04:50.1]} 9... d6 {[%clk
0:04:47]} 10. a3 {[%clk 0:04:47.7]} 10... Re8 {[%clk 0:04:43.3]} 11. h3 {[%clk
0:04:45.5]} 11... e5 {[%clk 0:04:42.2]} 12. dxe5 {[%clk 0:04:39.5]} 12... dxe5
{[%clk 0:04:41.5]} 13. e4 {[%clk 0:04:32]} 13... Nc5 {[%clk 0:04:39.7]} 14. Bc2
{[%clk 0:04:26.4]} 14... Be6 {[%clk 0:04:38.5]} 15. b4 {[%clk 0:04:23.1]} 15...
axb4 {[%clk 0:04:35.6]} 16. axb4 {[%clk 0:04:22.9]} 16... Rxa1 {[%clk
0:04:34.2]} 17. Qxa1 {[%clk 0:04:16.5]} 17... Na6 {[%clk 0:04:33.6]} 18. Rd1
{[%clk 0:04:12.7]} 18... Qe7 {[%clk 0:04:32.6]} 19. Nd5 {[%clk 0:04:10.9]} 19...
Bxd5 {[%clk 0:04:26.6]} 20. cxd5 {[%clk 0:04:10.8]} 20... Nxb4 {[%clk
0:04:25.7]} 21. Rc1 {[%clk 0:03:46.1]} 21... Nxc2 {[%clk 0:04:05.8]} 22. Rxc2
{[%clk 0:03:44.8]} 22... Qd6 {[%clk 0:04:05.7]} 23. Qb2 {[%clk 0:03:37.7]} 23...
c6 {[%clk 0:03:50.5]} 24. Qxb7 {[%clk 0:03:33.4]} 24... cxd5 {[%clk 0:03:49.9]}
25. Qxd5 {[%clk 0:03:25.7]} 25... Qxd5 {[%clk 0:03:47.7]} 26. exd5 {[%clk
0:03:25.6]} 26... e4 {[%clk 0:03:44.4]} 27. Nd2 {[%clk 0:03:22.3]} 27... Rd8
{[%clk 0:03:43.4]} 28. Nxe4 {[%clk 0:03:17.7]} 28... Kg7 {[%clk 0:03:34.9]} 29.
Rc6 {[%clk 0:03:07.5]} 29... Be5 {[%clk 0:03:29.8]} 30. d6 {[%clk 0:03:02.6]}
30... f5 {[%clk 0:03:24.5]} 31. Rc7+ {[%clk 0:02:57]} 31... Kf8 {[%clk
0:03:17.2]} 32. Nc5 {[%clk 0:02:49.6]} 32... Rxd6 {[%clk 0:03:07.9]} 33. Nd7+
{[%clk 0:02:42.4]} 33... Rxd7 {[%clk 0:02:59.4]} 34. Rxd7 {[%clk 0:02:40.2]}
34... f4 {[%clk 0:02:56.1]} 35. f3 {[%clk 0:02:36.6]} 35... h5 {[%clk 0:02:37]}
36. Kf2 {[%clk 0:02:23.1]} 36... h4 {[%clk 0:02:33.9]} 37. Ke2 {[%clk
0:02:21.4]} 37... Ke8 {[%clk 0:02:26.6]} 38. Rb7 {[%clk 0:02:19.6]} 38... Bd4
{[%clk 0:02:18.7]} 39. Kd3 {[%clk 0:02:17.3]} 39... Bf2 {[%clk 0:02:14.4]} 40.
Ke4 {[%clk 0:02:16.2]} 40... Bg3 {[%clk 0:02:13.3]} 41. Ke5 {[%clk 0:02:14.8]}
41... Kd8 {[%clk 0:02:11.5]} 42. Kf6 {[%clk 0:02:13.7]} 42... Kc8 {[%clk
0:02:10.5]} 43. Rh7 {[%clk 0:02:10.9]} 43... Be1 {[%clk 0:02:03.1]} 44. Kxg6
{[%clk 0:02:09.6]} 44... Kd8 {[%clk 0:02:02]} 45. Kg5 {[%clk 0:02:08.9]} 45...
Bg3 {[%clk 0:02:00.4]} 46. Rxh4 {[%clk 0:02:06.3]} 46... Bxh4+ {[%clk
0:01:57.8]} 47. Kxh4 {[%clk 0:02:05.7]} 47... Ke7 {[%clk 0:01:57.5]} 48. Kg4
{[%clk 0:02:05.3]} 48... Kf6 {[%clk 0:01:56.7]} 49. Kxf4 {[%clk 0:02:04.9]} 1-0

[Event "Live Chess"]
[Site "Chess.com"]
[Date "2024.06.01"]
[Round "-"]
[White "degringolade64"]
[Black "Crowded_House"]
[Result "1-0"]
[WhiteElo "2115"]
[BlackElo "1738"]
[TimeControl "300"]
[EndTime "15:08:31 PDT"]
[Termination "degringolade64 won by resignation"]

1. e4 {[%clk 0:04:57.5]} 1... e6 {[%clk 0:04:58.4]} 2. d4 {[%clk 0:04:55.8]}
2... d5 {[%clk 0:04:57.5]} 3. e5 {[%clk 0:04:54.9]} 3... c5 {[%clk 0:04:55.9]}
4. c3 {[%clk 0:04:54.5]} 4... Nc6 {[%clk 0:04:54]} 5. Nf3 {[%clk 0:04:54]} 5...
Qb6 {[%clk 0:04:52.6]} 6. Bd3 {[%clk 0:04:53.1]} 6... Bd7 {[%clk 0:04:51.3]} 7.
dxc5 {[%clk 0:04:51]} 7... Bxc5 {[%clk 0:04:48.7]} 8. O-O {[%clk 0:04:50.6]}
8... Qc7 {[%clk 0:04:41.8]} 9. Qe2 {[%clk 0:04:44.8]} 9... Nge7 {[%clk
0:04:39.9]} 10. b4 {[%clk 0:04:42.7]} 10... Bb6 {[%clk 0:04:37.9]} 11. a4 {[%clk
0:04:35.5]} 11... a6 {[%clk 0:04:34.8]} 12. Na3 {[%clk 0:04:23.7]} 12... Ng6
{[%clk 0:04:28.6]} 13. Re1 {[%clk 0:04:20.1]} 13... O-O {[%clk 0:04:27.2]} 14.
h4 {[%clk 0:04:12.9]} 14... h6 {[%clk 0:04:10.6]} 15. h5 {[%clk 0:04:11.1]}
15... Nge7 {[%clk 0:04:09.3]} 16. Bf4 {[%clk 0:03:55.5]} 16... Rac8 {[%clk
0:03:53.9]} 17. Rac1 {[%clk 0:03:43.3]} 17... Qb8 {[%clk 0:03:47.5]} 18. Qd2
{[%clk 0:03:32.2]} 18... Nf5 {[%clk 0:03:33.9]} 19. Bxf5 {[%clk 0:03:29.9]}
19... exf5 {[%clk 0:03:32.7]} 20. e6 {[%clk 0:03:26.3]} 20... fxe6 {[%clk
0:03:19.1]} 21. Bxb8 {[%clk 0:03:24]} 21... Rxb8 {[%clk 0:03:15.3]} 22. b5
{[%clk 0:03:22.4]} 1-0

[Event "Live Chess"]
[Site "Chess.com"]
[Date "2024.06.01"]
[Round "-"]
[White "WelshTiger"]
[Black "Mangoalo"]
[Result "1-0"]
[WhiteElo "2505"]
[BlackElo "1060"]
[TimeControl "300"]
[EndTime "15:08:33 PDT"]
[Termination "WelshTiger won by checkmate"]

1. e4 {[%clk 0:04:58.1]} 1... Nc6 {[%clk 0:04:53.8]} 2. Nf3 {[%clk 0:04:56.5]}
2... b6 {[%clk 0:04:53.7]} 3. d4 {[%clk 0:04:52.5]} 3... Bb7 {[%clk 0:04:53.6]}
4. c3 {[%clk 0:04:46.5]} 4... d5 {[%clk 0:04:49.4]} 5. e5 {[%clk 0:04:44.8]}
5... e6 {[%clk 0:04:45.9]} 6. Bd3 {[%clk 0:04:42.6]} 6... f6 {[%clk 0:04:42]} 7.
exf6 {[%clk 0:04:40.4]} 7... Nxf6 {[%clk 0:04:41.6]} 8. O-O {[%clk 0:04:39.8]}
8... Bd6 {[%clk 0:04:38.8]} 9. Bg5 {[%clk 0:04:33.4]} 9... O-O {[%clk
0:04:37.2]} 10. Bh4 {[%clk 0:04:32.6]} 10... Be7 {[%clk 0:04:33.6]} 11. Re1
{[%clk 0:04:28.2]} 11... Ne4 {[%clk 0:04:27.3]} 12. Bxe7 {[%clk 0:04:23.6]}
12... Qxe7 {[%clk 0:04:27.1]} 13. Nbd2 {[%clk 0:04:17.9]} 13... Nxd2 {[%clk
0:04:18.7]} 14. Qxd2 {[%clk 0:04:16.2]} 14... Rf6 {[%clk 0:04:12.7]} 15. Bb5
{[%clk 0:03:51.2]} 15... Na5 {[%clk 0:03:49.2]} 16. Ne5 {[%clk 0:03:48.7]} 16...
Raf8 {[%clk 0:03:44.2]} 17. f3 {[%clk 0:03:46.6]} 17... c6 {[%clk 0:03:35.3]}
18. Bf1 {[%clk 0:03:43.4]} 18... b5 {[%clk 0:03:32.8]} 19. b3 {[%clk 0:03:36.7]}
19... Bc8 {[%clk 0:03:14.7]} 20. Nd3 {[%clk 0:03:29.2]} 20... Nb7 {[%clk
0:03:11.5]} 21. a4 {[%clk 0:03:27.9]} 21... bxa4 {[%clk 0:03:10.1]} 22. Rxa4
{[%clk 0:03:26.7]} 22... a5 {[%clk 0:03:07.7]} 23. Qe3 {[%clk 0:03:19]} 23...
Bd7 {[%clk 0:03:01.4]} 24. Nc5 {[%clk 0:03:13.6]} 24... Nxc5 {[%clk 0:02:59.4]}
25. dxc5 {[%clk 0:03:13.5]} 25... h6 {[%clk 0:02:53.7]} 26. Rxa5 {[%clk
0:03:11.9]} 26... Qd8 {[%clk 0:02:50.6]} 27. Ra7 {[%clk 0:03:09.4]} 27... R8f7
{[%clk 0:02:42.3]} 28. b4 {[%clk 0:03:02.9]} 28... Qc8 {[%clk 0:02:35.6]} 29.
Rea1 {[%clk 0:03:00.9]} 29... Be8 {[%clk 0:02:31.9]} 30. Qe5 {[%clk 0:02:39.9]}
30... Rf5 {[%clk 0:02:15.1]} 31. Qd6 {[%clk 0:02:39.1]} 31... Kh7 {[%clk
0:01:59.3]} 32. Ra8 {[%clk 0:02:26.4]} 32... Qd7 {[%clk 0:01:53.4]} 33. Bd3
{[%clk 0:02:16.6]} 33... g6 {[%clk 0:01:15.8]} 34. Bxf5 {[%clk 0:02:09.1]} 34...
Rxf5 {[%clk 0:01:15.7]} 35. Qxd7+ {[%clk 0:02:05.5]} 35... Bxd7 {[%clk 0:01:14]}
36. R1a7 {[%clk 0:02:04.6]} 36... Rf7 {[%clk 0:01:12.4]} 37. Rd8 {[%clk
0:02:03.5]} 37... g5 {[%clk 0:01:08.8]} 38. Raxd7 {[%clk 0:02:01.5]} 38... Rxd7
{[%clk 0:01:08.1]} 39. Rxd7+ {[%clk 0:02:01.4]} 39... Kg6 {[%clk 0:01:07.1]} 40.
Rd6 {[%clk 0:02:00.7]} 40... Kh5 {[%clk 0:01:07]} 41. Rxc6 {[%clk 0:02:00]}
41... Kh4 {[%clk 0:01:06.9]} 42. Rxe6 {[%clk 0:01:57]} 42... d4 {[%clk
0:01:06.8]} 43. g3+ {[%clk 0:01:54]} 43... Kh5 {[%clk 0:01:05]} 44. g4+ {[%clk
0:01:53.1]} 44... Kh4 {[%clk 0:01:02.8]} 45. Rxh6# {[%clk 0:01:52.3]} 1-0